Cogmind - Beta 14 @@@ ROGUE MODE // 2024.10.05 @ 19:07:57 Player: bluemonk Result: Destroyed by B-75 Beast with Heavy Machine Gun Performance ------------- Evolutions (2) 1000 Regions Visited (4) 800 Robots Destroyed (27) 135 Value Destroyed (1238) 1238 Prototype IDs (8) 160 Alien Tech Used (0) 0 Bonus (266) 266 TOTAL SCORE: 3599 Bonus ------- High Alert Combat Kills 66 Entered Garrisons 200 Cogmind --------- Core Integrity 0/550 Matter 270/300 Energy 133/265 System Corruption 4% Temperature Cool (0) Movement Flying (117) Ox1 Location -8/Garrison Parts ------- > --- POWER (1) -------- Reinforced Ion Engine > --- PROPULSION (4) --- VSS Leg Improved Flight Unit Improved Flight Unit > --- UTILITY (3) ------ Authchip [R/Combat] > --- WEAPON (3) ------- Katana > --- INVENTORY (5) ---- Authchip [R/Combat] Authchip [R/Combat] Peak State ------------ > --- POWER ------------ Reinforced Ion Engine > --- PROPULSION ------- Improved Flight Unit Improved Flight Unit Improved Flight Unit Improved Flight Unit > --- UTILITY ---------- Thermal Generator Small Storage Unit Hacking Suite > --- WEAPON ----------- Shock Rifle Pulse Rifle Katana > --- INVENTORY -------- Reinforced Ion Engine Reinforced Ion Engine VSS Leg VSS Leg Seismic Detector Improved Weapon Shielding Heavy Particle Cannon Katana [Rating: 32] Favorites ----------- Power Reinforced Ion Engine Engine Reinforced Ion Engine Power Core Light Nuclear Core Propulsion Aluminum Leg Leg Aluminum Leg Flight Unit Improved Flight Unit Utility Small Storage Unit Device Thermal Generator Storage Small Storage Unit Processor Advanced Visual Processing Unit Hackware Hacking Suite Weapon Pulse Rifle Energy Gun Pulse Rifle Energy Cannon Heavy Particle Cannon Ballistic Gun Assault Rifle Impact Weapon Mace Slashing Weapon Katana Build | -11 -10 -9 -8 -8 ------- Run | Yrd Mat Mat Mat Gar Slots Evolved 4 | . . 2 2 . Power . | . . . . . Propulsion 2 | . . 2 . . Utility 1 | . . . 1 . Weapon 1 | . . . 1 . Parts Attached 43 | 6 5 9 10 13 Power 4 | 1 1 . . 2 Engine 3 | 1 1 . . 1 Core 1 | . . . . 1 Reactor . | . . . . . Propulsion 19 | 2 . 8 4 5 Treads . | . . . . . Leg 12 | 2 . 3 4 3 Wheel . | . . . . . Hover . | . . . . . Flight 7 | . . 5 . 2 Utility 6 | 1 1 . 2 2 Device 2 | . . . 1 1 Storage 1 | 1 . . . . Processor 1 | . . . 1 . Hackware 2 | . 1 . . 1 Protection . | . . . . . Artifact . | . . . . . Weapon 14 | 2 3 1 4 4 Energy Gun 7 | 1 2 . 2 2 Energy Cannon 2 | . . . 1 1 Ballistic Gun 1 | 1 . . . . Ballistic Cannon . | . . . . . Launcher . | . . . . . Special Weapon . | . . . . . Impact Weapon 2 | . 1 . 1 . Slashing Weapon 2 | . . 1 . 1 Piercing Weapon . | . . . . . Special Melee Weapon . | . . . . . Unidentified Prototypes 1 | . . 1 . . Parts Lost 12 | . . . . 12 Power 2 | . . . . 2 Propulsion 4 | . . . . 4 Utility 2 | . . . . 2 Weapon 4 | . . . . 4 Highest Loss Streak 6 | . . . . 6 To Critical Strikes . | . . . . . Average Slot Usage (%) 94 | . 97 98 99 88 Engine 9 | . 14 11 9 6 Leg 24 | . 28 27 7 31 Flight 8 | . . 15 28 . Device 3 | . . . 4 6 Storage 10 | . 14 11 9 8 Hackware 10 | . 12 11 9 8 Energy Gun 11 | . 12 11 16 8 Energy Cannon 2 | . . . . 5 Impact Weapon 7 | . 10 8 . 8 Slashing Weapon 2 | . . 2 7 . Peak Build Rating 32 | 6 13 25 32 32 Average Rating 20 | 4 11 18 30 27 On Entrance 15 | . 6 13 25 31 Naked Turns . | . . . . . Heaviest Build 34 | 14 20 20 31 34 Greatest Support 52 | 20 20 40 52 52 Greatest Overweight (x) 3 | . . 3 1 1 Average Overweight (x) . | . . . . . Largest Inventory Capacity 8 | 8 8 8 8 8 Average Capacity 7 | 6 8 8 8 7 Most Carried 8 | 6 8 8 8 8 Average Carried 6 | 2 7 7 7 6 Final Capacity 8 | 8 8 8 8 5 Final Carried 8 | 6 8 8 8 2 Class Distribution -------------------- 88% | Mutant 11% | Sprinter Dominant Class ---------------- Mutant | -10/Materials Sprinter | -9/Materials Mutant | -8/Materials Mutant | -8/Garrison Resources | -11 -10 -9 -8 -8 ----------- Run | Yrd Mat Mat Mat Gar Matter Collected 586 | 191 119 90 50 136 Remotely . | . . . . . Salvage Created 1212 | . 175 402 185 450 Parts 70 | . 16 23 7 24 Haulers Intercepted 2 | . 1 1 . . Recyclers Shooed . | . . . . . Parts Field Recycled . | . . . . . Retrieved Matter . | . . . . . Parts Self-Destructed . | . . . . . Prevented . | . . . . . Kills | -11 -10 -9 -8 -8 ------- Run | Yrd Mat Mat Mat Gar Combat Hostiles Destroyed 23 | . 2 7 4 10 Melee 3 | . . . . 3 Guns 11 | . 2 5 3 1 Cannons 5 | . . . . 5 AOE 3 | . . 2 1 . Classes Destroyed 6 | . 3 2 . 1 Hauler 2 | . 1 1 . . Operator 2 | . 2 . . . Grunt 16 | . 2 5 2 7 Duelist 3 | . . 1 1 1 Sentry 3 | . . 1 1 1 Hunter 1 | . . . . 1 Best Kill Streak 3 | . 2 3 3 2 Combat Bots Only 3 | . 2 2 3 2 Max Kills in Single Turn 1 | . 1 1 1 1 Gunslinging . | . . . . . Exploded 1 | . . 1 1 . Melee 1 | . . . . 1 Uniques/NPCs Destroyed . | . . . . . Combat | -11 -10 -9 -8 -8 -------- Run | Yrd Mat Mat Mat Gar Hostile Shots Fired 152 | . 4 17 13 118 Missed 37 | . 1 7 1 28 Damage Taken 1950 | . 33 134 238 1545 Core 562 | . . 12 84 466 Absorbed by Shields . | . . . . . Regen/Repaired (Parts) 22 | . 22 . . . Core Remaining (%) 99 | 100 100 97 . . Volleys Fired 75 | . 16 22 11 26 Largest 2 | . 1 1 2 2 Hottest 140 | . 45 45 113 140 Shots Fired 103 | . 16 22 20 45 Gun 79 | . 16 22 20 21 Cannon 24 | . . . . 24 Launcher . | . . . . . Special . | . . . . . Kinetic . | . . . . . Thermal 52 | . . . 9 43 Explosive . | . . . . . Electromagnetic 51 | . 16 22 11 2 Robot Hit Streak 7 | . 3 5 6 7 Robot Miss Streak 5 | . 5 5 4 2 Penetration Max . | . . . . . Secondary Targets . | . . . . . Shots Hit Robots 81 | . 9 19 12 41 Core Hits 47 | . 7 17 8 15 Critical Kills 1 | . . . . 1 Critical Parts Destroyed 2 | . . . . 2 Critical Strikes 7 | . . . 1 6 Burn 2 | . . . . 2 Meltdown 1 | . . . . 1 Corrupt 1 | . . . 1 . Smash 3 | . . . . 3 Melee Attacks 23 | . 2 3 . 18 Impact 17 | . 2 3 . 12 Slashing 6 | . . . . 6 Piercing . | . . . . . Sneak Attacks 2 | . 2 . . . Combat Hostiles . | . . . . . Follow-up Attacks . | . . . . . Damage Inflicted 2078 | . 181 393 390 1114 Guns 734 | . 77 238 197 222 Cannons 404 | . . . . 404 Explosions 278 | . . 85 193 . Melee 662 | . 104 70 . 488 Ramming . | . . . . . Kinetic . | . . . . . Thermal 971 | . . 85 278 608 Explosive . | . . . . . Electromagnetic 445 | . 77 238 112 18 Impact 525 | . 104 70 . 351 Slashing 137 | . . . . 137 Piercing . | . . . . . Highest Corruption 4 | . . . 4 4 Average Corruption 3 | . . . 3 4 Corruption Purged . | . . . . . Corruption Blocked . | . . . . . Effects 9 | . . . 1 8 Message Errors 3 | . . . . 3 Matter Fused 3 | . . . . 3 Parts Fused 1 | . . . . 1 Data Loss (minor) 2 | . . . 1 1 Overload Shots . | . . . . . Overflow Damage 150 | . . . . 150 Projectiles . | . . . . . Explosions . | . . . . . Melee 150 | . . . . 150 Knockbacks 1 | . . 1 . . Impact 1 | . . 1 . . Kinetic . | . . . . . Secondary . | . . . . . Self-Inflicted Damage 54 | . . . 54 . Shots 1 | . . . 1 . Rammed . | . . . . . Targets Rammed . | . . . . . Kicked . | . . . . . Crushed . | . . . . . Highest Temperature 574 | . 78 125 433 574 Average Temperature 155 | . 27 37 212 200 Received Heat Transfer 813 | . 18 57 99 639 Effects 19 | . . . 4 15 Shutdowns 3 | . . . 1 2 Energy Bleed 4 | . . . . 4 Interference 3 | . . . . 3 Short Circuit 4 | . . . 1 3 Damage (minor) 2 | . . . . 2 Damage (major) 3 | . . . 2 1 Siege Activations . | . . . . . Robots Corrupted . | . . . . . Combat Hostiles . | . . . . . Parts Fried 2 | . . . . 2 Impact Corruptions 2 | . . . . 2 Robots Melted 1 | . . . . 1 Combat Hostiles 1 | . . . . 1 Parts Melted 3 | . . . . 3 Heat Transferred 1406 | . . 100 335 971 Parts Sabotaged . | . . . . . Parts Stolen . | . . . . . Parts Stripped . | . . . . . Power Chain Reactions 3 | . . 2 1 . Alert | -11 -10 -9 -8 -8 ------- Run | Yrd Mat Mat Mat Gar Peak Influence 519 | . 105 263 277 519 Initial 180 | . . 44 110 180 Average 181 | . 48 117 213 338 Maximum Alert Level 2 | . . 1 1 2 Low Security (%) 62 | 100 100 86 43 23 Level 1 25 | . . 13 56 40 Level 2 11 | . . . . 36 Level 3 . | . . . . . Level 4 . | . . . . . Level 5 . | . . . . . High Security . | . . . . . Max Security . | . . . . . Squads Dispatched 2 | . 1 1 . . Investigation 1 | . . 1 . . Extermination . | . . . . . Reinforcement 1 | . 1 . . . Assault . | . . . . . Garrison . | . . . . . Intercept . | . . . . . Searches Triggered . | . . . . . Construction Impeded . | . . . . . Haulers Reinforced . | . . . . . Active Scanning Responses . | . . . . . Cargo Convoy Interrupts . | . . . . . Stealth | -11 -10 -9 -8 -8 --------- Run | Yrd Mat Mat Mat Gar Distress Signals . | . . . . . Communications Jammed . | . . . . . Distress Signals . | . . . . . Times Spotted 38 | . 5 8 4 21 Peak Tracking Total 9 | . 2 2 2 9 Tactical Retreats 3 | . . . . 3 Traps | -11 -10 -9 -8 -8 ------- Run | Yrd Mat Mat Mat Gar Traps Triggered 4 | . . . 3 1 Indirectly . | . . . . . Trap Hack Attempts . | . . . . . Triggered . | . . . . . Disarmed . | . . . . . Reprogrammed . | . . . . . Reused . | . . . . . Traps Extracted . | . . . . . Installed . | . . . . . Triggered . | . . . . . Machines | -11 -10 -9 -8 -8 ---------- Run | Yrd Mat Mat Mat Gar Machines Disabled 2 | . . . 1 1 Max in Single Turn 1 | . . . 1 1 Garrison Relay 1 | . . . . 1 Machines Repaired . | . . . . . Machines Dismantled . | . . . . . Machines Sabotaged . | . . . . . Overloaded Fab Kills . | . . . . . Hacking | -11 -10 -9 -8 -8 --------- Run | Yrd Mat Mat Mat Gar Machines Accessed 9 | . 3 1 4 1 Terminals 7 | . 2 1 3 1 Fabricators . | . . . . . Repair Stations 1 | . 1 . . . Recycling Units . | . . . . . Scanalyzers . | . . . . . Garrison Access 1 | . . . 1 . Total Hacks 27 | . 8 4 13 2 Successful 14 | . 5 1 7 1 Failed 13 | . 3 3 6 1 Catastrophic 4 | . 1 1 1 1 Database Lockouts . | . . . . . Manual 1 | . . . 1 . Terminals 21 | . 5 4 10 2 Fabricators . | . . . . . Repair Stations 3 | . 3 . . . Recycling Units . | . . . . . Scanalyzers . | . . . . . Garrison Access 3 | . . . 3 . Terminal Hacks 10 | . 3 1 5 1 Robot Analysis 2 | . 1 . 1 . Prototype ID Bank 3 | . 2 1 . . Branch Access Points 1 | . . . 1 . Recycling Unit Index 1 | . . . 1 . Transport Status 1 | . . . 1 . Registered Components 1 | . . . 1 . Garrison Registry 1 | . . . . 1 Fabricator Hacks . | . . . . . Repair Station Hacks 2 | . 2 . . . Scan Component 1 | . 1 . . . Repair 1 | . 1 . . . Recycling Unit Hacks . | . . . . . Scanalyzer . | . . . . . Garrison Access Hacks 2 | . . . 2 . Unlock Access 1 | . . . 1 . Coupler Status 1 | . . . 1 . Unauthorized Hacks . | . . . . . Terminals . | . . . . . Fabricators . | . . . . . Repair Stations . | . . . . . Recycling Units . | . . . . . Scanalyzers . | . . . . . Garrison Access . | . . . . . Data Cores Recovered 1 | . 1 . . . Used 1 | . 1 . . . Hacking Detections 9 | . 3 1 4 1 Full Trace Events 1 | . . 1 . . Feedback Events . | . . . . . Feedback Blocked . | . . . . . Robot Schematics Acquired . | . . . . . Robots Built . | . . . . . Authchips . | . . . . . Time . | . . . . . Total Robot Build Rating . | . . . . . Part Schematics Acquired . | . . . . . Parts Built . | . . . . . Authchips . | . . . . . Time . | . . . . . Total Part Build Rating . | . . . . . Parts Repaired 1 | . 1 . . . Time 32 | . 32 . . . Parts Recycled . | . . . . . Recycled Matter . | . . . . . Retrieved Matter . | . . . . . Retrieved Components . | . . . . . Parts Scanalyzed . | . . . . . Part Schematics Acquired . | . . . . . Parts Damaged . | . . . . . Bothacking | -11 -10 -9 -8 -8 ------------ Run | Yrd Mat Mat Mat Gar Used RIF Installer . | . . . . . Robots Hacked . | . . . . . Non-combat . | . . . . . Combat . | . . . . . Robot Hacks Applied . | . . . . . Relay Couplers Released 4 | . . . . 4 Machine Destruction 4 | . . . . 4 Fabnet Peak Effective % . | . . . . . Robots Rewired . | . . . . . Allies Hacked . | . . . . . Hacks Repelled . | . . . . . Allies | -11 -10 -9 -8 -8 -------- Run | Yrd Mat Mat Mat Gar Total Allies . | . . . . . Largest Group . | . . . . . Highest-Rated Group . | . . . . . Highest-Rated Ally . | . . . . . Total Orders . | . . . . . Ally Attacks . | . . . . . Total Damage . | . . . . . Kills . | . . . . . Allies Corrupted . | . . . . . Allies Melted . | . . . . . Intel | -11 -10 -9 -8 -8 ------- Run | Yrd Mat Mat Mat Gar Robot Analysis Total 2 | . 1 . 1 . Derelict Logs Recovered . | . . . . . Drone Launches . | . . . . . Drone Recoveries . | . . . . . Exploration | -11 -10 -9 -8 -8 ------------- Run | Yrd Mat Mat Mat Gar Turns Passed 1221 | 92 298 207 232 392 Spaces Moved 788 | 66 170 147 175 230 Core 3 | 3 . . . . Treads . | . . . . . Legs 566 | 63 170 64 42 227 Wheels . | . . . . . Hover . | . . . . . Flight 219 | . . 83 133 3 Fastest Speed 31 | 50 120 31 31 90 Average Speed 102 | 116 120 77 100 102 Slowest Speed 270 | 120 120 270 180 117 Overloaded Moves . | . . . . . Propulsion Burnouts . | . . . . . Robots Hopped . | . . . . . Cave-ins Triggered . | . . . . . Exploration Rate (%) 18 | 5 22 16 18 33 Regions Visited 4 Branch Regions . Pre-discovered Areas . | . . . . . Known Exits Taken 1 | . . . 1 . Unknown Exits Taken 3 | 1 1 1 . . Scrap Searched . | . . . . . Spaces Dug . | . . . . . Terrain Destroyed 49 | . . 12 37 . Melee . | . . . . . Projectile . | . . . . . AOE 49 | . . 12 37 . Terrain Rammed . | . . . . . Walls Destroyed . | . . . . . Machines Disabled . | . . . . . Actions | -11 -10 -9 -8 -8 --------- Run | Yrd Mat Mat Mat Gar Total 1067 | 78 247 217 211 314 Wait 60 | . 32 15 . 13 Move 784 | 65 169 146 174 230 Hop . | . . . . . Pick Up 39 | 7 12 9 7 4 Fast Attach 25 | 5 2 6 4 8 Attach 13 | 1 . 3 3 6 Detach . | . . . . . Swap 7 | . 3 . 3 1 Drop 41 | . 11 13 9 8 Fire 75 | . 16 22 11 26 Melee 23 | . 2 3 . 18 Ram . | . . . . . Kick . | . . . . . Crush . | . . . . . Escape Stasis . | . . . . . Rewire . | . . . . . Trap . | . . . . . Miscellaneous . | . . . . . Route ------- -11/Scrapyard -10/Materials -9/Materials -8/Materials -8/Garrison (discovered 3 exits: [Mat x3]) History --------- Turn | Location | Event 10 | -11/Scrapyard | Discovered new exit (range 15) 93 | -11/Scrapyard | Entered Materials 212 | -10/Materials | Discovered new exit (range 16) 322 | -10/Materials | Build established: Mutant 365 | -10/Materials | Repaired EM Shotgun 391 | -10/Materials | Entered another Materials area 391 | -9/Materials | Evolved 2 slots: Propulsion x2 573 | -9/Materials | Discovered new exit (range 15) 598 | -9/Materials | Entered another Materials area 598 | -8/Materials | Evolved 2 slots: Utility x1, Weapon x1 829 | -8/Materials | Identified exit to Garrison 830 | -8/Materials | Entered Garrison 894 | -8/Garrison | Triggered checkpoint 938 | -8/Garrison | Garrison Relay disabled 1033 | -8/Garrison | Discovered new exit (range 59) 1033 | -8/Garrison | Discovered new exit (range 76) 1033 | -8/Garrison | Discovered new exit (range 34) 1084 | -8/Garrison | Spotted B-75 Beast 1144 | -8/Garrison | Core integrity fell below 50% 1174 | -8/Garrison | Lost 6 parts (1p2n1u2w) 1196 | -8/Garrison | Core integrity fell below 20% 1222 | -8/Garrison | Destroyed by B-75 Beast with Heavy Machine Gun Last Messages --------------- effect. Lgt. Nuclear Core fried. Imp. Heat Sink fried. G-47 Trooper destroyed. L-31 Rogue suffers critical hit (Smash). Destroyed Melee Analysis Suite. L-31 Rogue system corrupted by crushing effect. 4